bitfinex-derivatives/quotes_SOLF0:USTF0_20240918
["timestamp","ask_amount","ask_price","bid_price","bid_amount"]
[1726650613304,3.8217,130.81,130.76,6.95080268]
[1726650613599,3.8217,130.81,130.77,6.95080268]
[1726650613802,3.8217,130.81,130.75,5.3356]
[1726650614101,3.822,130.8,130.76,6.95083632]
[1726650614403,3.822,130.8,130.77,6.95083632]
[1726650614594,3.822,130.8,130.75,5.3356]
[1726650614798,3.822,130.8,130.76,6.95085271]
[1726650614991,3.822,130.8,130.75,5.3356]
[1726650614992,3.822,130.8,130.77,6.95085271]
[1726650615298,3.822,130.8,130.75,5.3356]
[1726650615493,3.822,130.8,130.76,6.9508716]
[1726650615693,3.822,130.8,130.77,6.9508716]
[1726650615994,3.822,130.8,130.75,5.3356]
[1726650616191,3.822,130.8,130.76,6.95087592]
[1726650616396,3.822,130.8,130.77,6.95087592]
[1726650616594,3.822,130.8,130.75,5.3356]
[1726650616798,3.822,130.8,130.76,6.95111776]
[1726650616999,3.822,130.8,130.75,5.3356]
[1726650617395,3.822,130.8,130.77,6.95111777]
[1726650617696,3.822,130.8,130.75,5.3356]
[1726650617901,3.822,130.8,130.76,6.95115219]
[1726650618198,3.822,130.8,130.77,6.95115219]
[1726650618396,3.8223,130.79,130.74,151.15216053]
[1726650618596,2.8175,130.88,130.75,6.95231113]
[1726650618798,1.15787371,130.87,130.74,151.15216053]
[1726650618995,7.6412,130.85,130.74,151.15216053]
[1726650619200,2.53977371,130.84,130.74,151.15216053]
[1726650619499,3.823,130.77,130.74,151.15216053]
[1726650619903,1.4111,130.83,130.74,151.15216053]
[1726650620103,3.8232,130.77,130.74,151.15216053]
[1726650636214,3.8232,130.77,130.73,3.824]
[1726650637803,3.8232,130.77,130.72,3.8242]
[1726650638313,3.8232,130.76,130.72,3.8242]
[1726650638514,3.8232,130.76,130.71,3.8245]
[1726650646114,1.3819,130.8,130.69,8.34686788]
[1726650646319,1.3819,130.8,130.69,1.3929]
[1726650646721,1.3819,130.8,130.63,7.90826788]
[1726650646918,1.3819,130.8,130.68,3.8254]
[1726650647212,1.3819,130.8,130.68,155.03543646]
[1726650647414,3.8242,130.73,130.68,155.03543646]
[1726650648118,3.8244,130.72,130.68,155.03543646]
[1726650650324,3.8244,130.72,130.68,151.21003646]
[1726650651121,3.8242,130.73,130.68,151.21003646]
[1726650653422,3.8242,130.73,130.68,155.03543646]
[1726650653622,3.8239,130.74,130.68,155.03543646]
[1726650655412,3.8236,130.75,130.68,151.21003646]
[1726650655613,1.3819,130.8,130.69,1.4339]
[1726650655820,1.3819,130.8,130.7,3.8247]
[1726650656020,3.8231,130.77,130.69,2.389]
[1726650656819,3.8231,130.77,130.71,3.8245]
[1726650663232,3.8232,130.76,130.71,3.8245]
[1726650668441,1.3819,130.8,130.7,3.8248]
[1726650668642,1.3819,130.8,130.69,9.34302336]
[1726650669228,1.3819,130.8,130.69,8.38792336]
[1726650669430,1.3819,130.8,130.68,151.21003646]
[1726650669739,3.8245,130.72,130.68,151.21003646]
[1726650670643,3.8248,130.71,130.68,151.21003646]
[1726650671038,3.8245,130.72,130.68,151.21003646]
[1726650671736,3.8247,130.71,130.68,151.21003646]
[1726650680651,3.8242,130.73,130.68,151.21003646]
[1726650681646,3.8242,130.73,130.68,155.03543646]
[1726650681846,3.8244,130.72,130.68,151.21003646]
[1726650682846,3.8247,130.71,130.68,151.21003646]
[1726650683252,1.4708,130.78,130.68,151.21003646]
[1726650683551,3.8245,130.72,130.68,151.21003646]
[1726650690753,1.4708,130.78,130.68,151.21003646]
[1726650691458,3.8245,130.72,130.68,151.21003646]
[1726650692155,3.8247,130.71,130.68,151.21003646]
[1726650707270,1.4689,130.76,130.68,151.21003646]
[1726650707867,3.8248,130.71,130.68,151.21003646]
[1726650716976,1.4689,130.76,130.68,151.21003646]
[1726650717278,1.4689,130.76,130.69,6.95582337]
[1726650717467,3.8242,130.73,130.68,155.03553646]
[1726650717675,3.8242,130.73,130.69,6.95581463]
[1726650717866,3.8242,130.73,130.68,151.21003646]
[1726650718178,3.8242,130.73,130.69,6.95581094]
[1726650718479,3.8242,130.73,130.68,151.21003646]
[1726650718667,3.8242,130.73,130.69,6.95574747]
[1726650718867,3.8242,130.73,130.68,151.21003646]
[1726650719274,3.8244,130.72,130.68,151.21003646]
[1726650722577,3.8244,130.72,130.69,6.95563503]
[1726650722778,3.8244,130.72,130.68,151.21003646]
[1726650722973,3.8244,130.72,130.69,6.95563342]
[1726650723169,3.8244,130.72,130.68,151.21003646]
[1726650723374,3.8244,130.72,130.69,6.9556326]
[1726650723680,3.8244,130.72,130.68,151.21003646]
[1726650724876,3.8244,130.72,130.69,6.95559701]
[1726650725076,3.8244,130.72,130.68,151.21003646]
[1726650725273,3.8244,130.72,130.69,6.95565389]
[1726650725481,3.8244,130.72,130.68,151.21003646]
[1726650725681,3.8244,130.72,130.69,6.95572184]
[1726650725881,1.4689,130.76,130.68,151.21003646]
[1726650726880,3.8245,130.72,130.68,151.21003646]
[1726650731586,1.4689,130.76,130.68,151.21003646]
[1726650731980,3.8246,130.72,130.68,151.21003646]
[1726650732179,1.4689,130.76,130.68,151.21003646]
[1726650732889,3.8252,130.7,130.68,151.21003646]
[1726650734276,3.8252,130.69,130.68,151.21003646]
[1726650759801,3.8251,130.7,130.68,151.21003646]
[1726650761699,3.8252,130.69,130.68,151.21003646]
[1726650763804,3.8251,130.7,130.68,151.21003646]
[1726650768719,3.8251,130.7,130.66,3.8261]
[1726650770413,3.8251,130.7,130.65,3.8262]
[1726650771818,3.8252,130.69,130.65,3.8262]
[1726650772320,3.8251,130.7,130.65,3.8262]
[1726650772518,3.8251,130.7,130.66,1.5045]
[1726650777522,3.8248,130.71,130.66,5.3305]
[1726650777716,1.4689,130.76,130.66,1.5045]
[1726650777917,3.8242,130.73,130.68,3.8254]
[1726650778117,3.8242,130.73,130.69,6.95610976]
[1726650778320,3.8242,130.73,130.68,3.8254]
[1726650778620,3.8239,130.74,130.69,10.78105479]
[1726650778818,3.8239,130.74,130.69,3.8251]
[1726650779018,3.8241,130.73,130.68,3.8254]
[1726650779217,3.8241,130.73,130.69,6.95581403]
[1726650779417,3.8241,130.73,130.68,3.8254]
[1726650779618,3.8241,130.73,130.69,6.95584949]
[1726650779924,3.8241,130.73,130.68,3.8254]
[1726650780421,3.8241,130.73,130.69,6.95580162]
[1726650780622,3.8241,130.73,130.68,3.8254]
[1726650780824,3.8241,130.73,130.69,6.95580162]
[1726650781124,3.8241,130.73,130.68,3.8254]
[1726650781325,3.8241,130.73,130.69,6.95541961]
[1726650781527,3.8241,130.73,130.68,3.8254]
[1726650781728,3.8241,130.73,130.69,6.95541961]
[1726650782030,3.8241,130.73,130.68,3.8254]
[1726650782228,3.8241,130.73,130.69,6.95541961]
[1726650782616,3.8241,130.73,130.68,3.8254]
[1726650782818,3.8241,130.73,130.69,6.95541962]
[1726650783020,3.8241,130.73,130.68,3.8254]
[1726650783224,3.8241,130.73,130.69,6.95541962]
[1726650783420,3.8241,130.73,130.68,3.8254]
[1726650783624,3.8241,130.73,130.69,6.95541962]
[1726650783827,3.8241,130.73,130.68,3.8254]
[1726650784029,3.8241,130.73,130.69,6.95541962]
[1726650784231,3.8241,130.73,130.68,3.8254]
[1726650784528,3.8241,130.73,130.69,6.95541962]
[1726650784732,3.8241,130.73,130.68,3.8254]
[1726650784930,3.8241,130.73,130.69,6.95541962]
[1726650785133,3.8241,130.73,130.68,3.8254]
[1726650785328,3.8241,130.73,130.69,6.95541962]
[1726650785524,3.8241,130.73,130.68,3.8254]
[1726650785831,3.8241,130.73,130.69,6.95541962]
[1726650786028,3.8241,130.73,130.68,3.8254]
[1726650786229,3.8241,130.73,130.69,6.95541962]
[1726650786426,3.8241,130.73,130.68,3.8254]
[1726650786628,3.8241,130.73,130.69,6.95541962]
[1726650786829,3.8241,130.73,130.68,3.8254]
[1726650787029,3.8241,130.73,130.69,6.95541962]
[1726650787231,3.8241,130.73,130.68,3.8254]
[1726650787524,3.8241,130.73,130.69,6.95541962]
[1726650787729,3.8241,130.73,130.68,3.8254]
[1726650787933,3.8241,130.73,130.69,6.95541962]
[1726650788134,3.8241,130.73,130.68,3.8254]
[1726650788335,3.8241,130.73,130.69,6.95541962]
[1726650788536,3.8241,130.73,130.68,3.8254]
[1726650789141,3.8241,130.73,130.69,6.95541415]
[1726650789339,3.8241,130.73,130.68,3.8254]
[1726650789835,3.8241,130.73,130.69,6.9554221]
[1726650790026,3.8241,130.73,130.68,3.8254]
[1726650790229,3.8241,130.73,130.69,6.9554203]
[1726650790436,3.8241,130.73,130.68,3.8254]
[1726650790735,3.8241,130.73,130.69,6.95541484]
[1726650790940,3.8241,130.73,130.68,3.8254]
[1726650791137,3.8241,130.73,130.69,6.95541471]
[1726650791339,3.8241,130.73,130.68,3.8254]
[1726650791639,3.8241,130.73,130.69,6.95542018]
[1726650791842,3.8241,130.73,130.68,3.8254]
[1726650792037,3.8241,130.73,130.69,6.95545564]
[1726650792232,3.8241,130.73,130.68,3.8254]
[1726650792541,3.8241,130.73,130.69,6.95545563]
[1726650792743,3.8241,130.73,130.68,3.8254]
[1726650793036,3.8241,130.73,130.69,6.95542105]
[1726650793236,3.8241,130.73,130.68,3.8254]
[1726650793440,3.8241,130.73,130.69,6.9554542]
[1726650793642,3.8241,130.73,130.68,3.8254]
[1726650793841,3.8241,130.73,130.69,6.9554542]
[1726650794042,3.8241,130.73,130.68,3.8254]
[1726650794239,3.8241,130.73,130.69,6.95541961]
[1726650794440,3.8241,130.73,130.68,3.8254]
[1726650794641,3.8241,130.73,130.69,6.95541961]
[1726650794943,3.8241,130.73,130.68,3.8254]
[1726650795144,3.8241,130.73,130.69,6.95542872]
[1726650795346,3.8241,130.73,130.68,3.8254]
[1726650795545,3.8241,130.73,130.69,6.95542872]
[1726650795842,3.8241,130.73,130.68,3.8254]
[1726650796047,3.8241,130.73,130.69,6.95542872]
[1726650796347,3.8241,130.73,130.68,3.8254]
[1726650796646,3.8241,130.73,130.69,6.95538494]
[1726650796848,3.8241,130.73,130.68,3.8254]
[1726650797049,3.8241,130.73,130.69,6.95538494]
[1726650797350,3.8241,130.73,130.68,3.8254]
[1726650797548,3.8241,130.73,130.69,6.95541952]
[1726650797751,3.8241,130.73,130.68,3.8254]
[1726650797752,3.8244,130.72,130.67,306.29807996]
[1726650797944,3.8244,130.72,130.68,6.95541921]
[1726650798145,3.8244,130.72,130.69,6.95541921]
[1726650798350,3.8244,130.72,130.67,306.29807996]
[1726650798548,3.8244,130.72,130.68,6.95545554]
[1726650798849,3.8244,130.72,130.67,306.29807996]
[1726650799050,3.8244,130.72,130.68,6.95545702]
[1726650799250,3.8244,130.72,130.67,306.29807996]
[1726650799450,3.8244,130.72,130.69,6.95542244]
[1726650799745,3.8244,130.72,130.67,306.29807996]
[1726650800348,3.8244,130.72,130.68,6.95542236]
[1726650800650,3.8244,130.72,130.67,306.29807996]
[1726650800852,3.8244,130.72,130.68,6.95543232]
[1726650801047,3.8244,130.72,130.67,306.29807996]
[1726650801248,3.8244,130.72,130.68,6.95542321]
[1726650801547,3.8244,130.72,130.67,306.29807996]
[1726650801748,3.8244,130.72,130.68,6.95542249]
[1726650801950,3.8244,130.72,130.67,306.29807996]
[1726650802152,3.8244,130.72,130.68,6.95542249]
[1726650802448,3.8244,130.72,130.67,306.29807996]
[1726650802653,1.4689,130.76,130.68,6.95542229]
[1726650803047,1.4689,130.76,130.67,302.47237996]
[1726650803248,3.8251,130.7,130.67,302.47237996]
[1726650815167,1.4689,130.76,130.67,302.47237996]
[1726650815168,3.8252,130.69,130.67,302.47237996]
[1726650818258,3.8251,130.7,130.67,302.47237996]
[1726650820965,3.8253,130.69,130.67,302.47237996]
[1726650846479,3.8255,130.68,130.67,302.47237996]
[1726650847377,1.5285,130.74,130.61,1.411]
[1726650847577,9.1715,130.73,130.62,6.9583572]
[1726650847778,1.4229,130.72,130.63,6.95854458]
[1726650848078,3.8264,130.66,130.61,10.78594458]
[1726650848277,3.8264,130.66,130.61,3.8274]
[1726650848674,3.8264,130.66,130.62,6.95861344]
[1726650848872,3.8264,130.65,130.61,3.8274]
[1726650849075,3.8264,130.65,130.6,4.7838]
[1726650849271,3.8264,130.65,130.61,6.95886021]
[1726650849478,3.8264,130.65,130.62,6.95886021]
[1726650849671,3.8264,130.65,130.6,4.7838]
[1726650849876,3.8264,130.65,130.61,6.95886259]
[1726650850072,3.8264,130.65,130.6,0.9561]
[1726650850275,3.8264,130.65,130.62,6.95886259]
[1726650850578,1.4229,130.72,130.61,6.95959323]
[1726650850579,3.8269,130.64,130.61,6.95959323]
[1726650850773,1.4229,130.72,130.59,1.458]
[1726650850974,3.8266,130.65,130.6,6.95948512]
[1726650851182,3.8266,130.65,130.61,6.95948512]
[1726650851384,3.8266,130.65,130.59,5.2859]
[1726650851583,3.8266,130.65,130.6,6.95956062]
[1726650851886,3.8266,130.65,130.59,5.2859]
[1726650852276,3.8266,130.65,130.6,6.95972892]
[1726650852575,3.8266,130.65,130.6,13.91935397]
[1726650852780,3.8266,130.65,130.61,6.95948791]
[1726650853281,3.8266,130.65,130.6,6.95972892]
[1726650853485,3.8266,130.65,130.61,6.95956517]
[1726650854182,3.8266,130.65,130.61,6.95954607]
[1726650855289,3.8266,130.65,130.6,10.78752892]
[1726650856290,3.8266,130.65,130.61,6.95956218]
[1726650857381,3.8266,130.65,130.61,6.95956305]
[1726650857782,3.8266,130.65,130.6,6.95972892]
[1726650858287,1.4229,130.72,130.6,6.95972892]
[1726650858689,3.8266,130.65,130.6,6.95972892]
[1726650859389,3.8267,130.64,130.6,6.95972892]
[1726650860688,3.8265,130.65,130.59,5.2861]
[1726650860892,3.8265,130.65,130.6,6.95962872]
[1726650861093,3.8265,130.65,130.59,5.2861]
[1726650861291,3.8265,130.65,130.6,10.78757488]
[1726650861490,3.8265,130.65,130.6,3.8278]
[1726650863995,3.8265,130.65,130.59,5.286]
[1726650864192,3.8265,130.65,130.6,6.95988084]
[1726650864386,3.8265,130.65,130.59,5.286]
[1726650864591,3.8265,130.65,130.6,6.95974235]
[1726650864793,3.8265,130.65,130.59,5.286]
[1726650864993,3.8265,130.65,130.6,6.95974235]
[1726650865189,3.8265,130.65,130.59,5.286]
[1726650865590,3.8265,130.65,130.6,6.95973688]
[1726650865893,3.8265,130.65,130.59,5.286]
[1726650866097,3.8265,130.65,130.6,6.95973688]
[1726650866390,3.8265,130.65,130.59,5.286]
[1726650866591,3.8265,130.65,130.6,6.95973775]
[1726650866794,3.8265,130.65,130.59,5.286]
[1726650866999,3.8265,130.65,130.6,6.95973775]
[1726650867198,3.8265,130.65,130.59,5.286]
[1726650867497,3.8265,130.65,130.6,6.95973775]
[1726650867696,3.8265,130.65,130.59,5.286]
[1726650867897,3.8265,130.65,130.6,6.95974322]
[1726650868099,3.8265,130.65,130.59,5.286]
[1726650868297,3.8265,130.65,130.6,6.95974345]
[1726650868495,3.8265,130.65,130.59,5.286]
[1726650868695,3.8265,130.65,130.6,6.95973798]
[1726650868994,3.8265,130.65,130.61,6.95973798]
[1726650869199,3.8265,130.65,130.59,5.286]
[1726650869397,3.8265,130.65,130.6,6.95973942]
[1726650869597,3.8265,130.65,130.61,6.95973942]
[1726650869802,3.8265,130.65,130.59,5.286]
[1726650870100,3.8265,130.65,130.6,6.95973942]
[1726650870298,3.8265,130.65,130.61,6.95973942]
[1726650870594,3.8265,130.65,130.59,5.286]
[1726650870792,3.8265,130.65,130.6,6.95987647]
[1726650871098,3.8267,130.64,130.61,6.95987647]
[1726650871294,3.8267,130.64,130.59,5.286]
[1726650871496,3.8267,130.64,130.6,6.95987721]
[1726650871792,3.8267,130.64,130.59,5.286]
[1726650872198,3.8267,130.64,130.6,6.95996135]
[1726650872587,3.8267,130.64,130.61,6.95996135]
[1726650872792,3.8267,130.64,130.59,5.286]
[1726650873098,3.8267,130.64,130.6,6.95993603]
[1726650873297,3.8267,130.64,130.61,6.95993603]
[1726650873500,3.8267,130.64,130.59,5.286]
[1726650873697,1.4229,130.72,130.6,6.95991388]
[1726650873899,1.4229,130.72,130.61,6.95991388]
[1726650874098,1.4229,130.72,130.59,1.458]
[1726650874392,3.8269,130.64,130.6,6.95991562]
[1726650874588,3.8269,130.64,130.61,6.95991562]
[1726650874792,3.8269,130.64,130.59,5.2861]
[1726650874990,3.8269,130.64,130.6,6.95991562]
[1726650875189,3.8269,130.64,130.61,6.95991562]
[1726650875394,3.8269,130.64,130.59,5.2861]
[1726650875803,3.8282,130.59,130.54,3.8296]
[1726650875992,7.6507,130.69,130.56,6.95991562]
[1726650875993,1.4523,130.63,130.56,6.95991562]
[1726650876197,1.4523,130.63,130.57,6.95991562]
[1726650876499,3.8278,130.61,130.55,306.30157996]
[1726650876703,1.4523,130.63,130.56,6.9611282]
[1726650876890,1.4523,130.63,130.57,6.9611282]
[1726650877097,1.4523,130.63,130.55,306.30157996]
[1726650877307,1.4523,130.63,130.56,6.96124587]
[1726650877497,1.4523,130.63,130.55,306.30157996]
[1726650877498,3.828,130.6,130.57,6.96124587]
[1726650877696,1.4523,130.63,130.56,6.96124587]
[1726650877896,1.5074,130.62,130.55,302.47237996]
[1726650878204,3.8282,130.59,130.56,6.96134081]
[1726650878499,3.8282,130.59,130.55,302.47237996]
[1726650878896,3.8282,130.59,130.56,6.96169152]
[1726650879105,3.8282,130.59,130.55,302.47237996]
[1726650879298,3.8282,130.59,130.56,6.96171615]
[1726650880297,3.8282,130.59,130.55,302.47237996]
[1726650887004,3.0057,130.62,130.55,302.47237996]
[1726650887204,1.5074,130.62,130.55,302.47237996]
[1726650887405,3.8277,130.61,130.56,10.79019737]
[1726650889301,1.4523,130.63,130.56,6.96139737]
[1726650889907,3.8278,130.61,130.56,6.96139737]
[1726650890306,2.8829,130.67,130.57,3.8285]
[1726650890614,2.8829,130.67,130.57,8.40299737]
[1726650890907,3.8269,130.64,130.58,3.8284]
[1726650891108,2.8829,130.67,130.57,8.40299737]
[1726650891302,2.8829,130.67,130.57,1.4416]
[1726650891500,2.8829,130.67,130.57,8.40299737]
[1726650891700,3.8269,130.64,130.57,5.2701]
[1726650891908,3.8269,130.64,130.57,12.23149737]
[1726650892210,3.8269,130.64,130.57,5.2701]
[1726650892612,3.8269,130.64,130.57,12.23102232]
[1726650892804,3.827,130.63,130.57,5.2701]
[1726650893004,2.8829,130.67,130.58,3.8284]
[1726650893510,3.8269,130.64,130.58,3.8284]
[1726650899407,2.8829,130.67,130.58,3.8284]
[1726650900509,2.8829,130.67,130.59,3.8279]
[1726650901310,3.8268,130.64,130.59,3.8279]
[1726650901502,2.8829,130.67,130.58,3.8283]
[1726650902210,2.8829,130.67,130.58,10.78912258]
[1726650902412,2.8829,130.67,130.58,6.96082258]
[1726650902602,3.8275,130.62,130.57,307.92588058]
[1726650903404,3.8275,130.62,130.58,6.96086754]
[1726650903807,3.8275,130.62,130.57,306.48428058]
[1726650904009,3.8275,130.62,130.57,302.65568058]
[1726650906314,3.8276,130.61,130.57,302.65568058]
[1726650913628,3.8279,130.6,130.57,302.65568058]
[1726650913827,2.8829,130.67,130.57,302.65568058]
[1726650914433,3.8277,130.61,130.57,302.65568058]
[1726650915726,3.8279,130.6,130.53,1.3991]
[1726650916328,3.8279,130.6,130.54,3.8296]
[1726650916529,3.8282,130.59,130.54,3.8296]
[1726650916833,2.8829,130.67,130.54,3.8296]
[1726650917132,3.8279,130.61,130.55,3.8293]
[1726650917427,2.8829,130.67,130.55,3.8293]
[1726650917930,3.828,130.6,130.55,3.8293]
[1726650921029,2.8829,130.67,130.53,1.3991]
[1726650921227,8.81166187,130.66,130.53,1.3991]
[1726650921534,1.15916187,130.65,130.53,1.3991]
[1726650921730,3.8283,130.59,130.53,5.2288]
[1726650924734,3.8279,130.6,130.54,3.8296]
[1726650925730,3.8276,130.61,130.53,1.3991]
[1726650926037,2.886,130.63,130.54,6.96249385]
[1726650926337,3.8275,130.62,130.56,3.829]
[1726650926933,3.8276,130.61,130.55,10.79177457]
[1726650927136,3.8276,130.61,130.55,3.8292]
[1726650928038,3.8281,130.6,130.54,3.8295]
[1726650930437,2.886,130.63,130.54,6.96335823]
[1726650930643,2.886,130.63,130.53,1.3991]
[1726650931235,3.8287,130.58,130.53,1.3991]
[1726650936234,3.8287,130.58,130.53,5.229]
[1726650936636,3.8287,130.58,130.53,1.3991]
[1726650937839,2.886,130.63,130.51,3.8305]
[1726650938139,2.886,130.63,130.52,6.9635571]
[1726650938342,3.8289,130.57,130.51,3.8305]
[1726650938736,3.8289,130.57,130.52,6.9637867]
[1726650939031,3.8292,130.56,130.5,4.1976]
[1726650939336,2.886,130.63,130.51,6.96391496]
[1726650939538,2.886,130.63,130.49,1.4813]
[1726650939730,3.8292,130.56,130.5,10.79516872]
[1726650939930,3.8292,130.56,130.51,6.96436872]
[1726650940135,3.8292,130.56,130.49,1.4813]
[1726650940340,3.8292,130.56,130.5,10.79521751]
[1726650940642,3.8292,130.56,130.51,6.96451751]
[1726650940838,3.8292,130.56,130.5,3.8307]
[1726650941046,3.8292,130.56,130.51,6.96451589]
[1726650941843,3.8292,130.56,130.5,3.8307]
[1726650942233,3.8292,130.56,130.51,6.96451589]
[1726650944546,3.8292,130.56,130.5,3.8307]
[1726650944740,2.886,130.63,130.51,6.96463106]
[1726650944941,2.886,130.63,130.49,5.3123]
[1726650945144,2.886,130.63,130.5,6.96466245]
[1726650945341,2.886,130.63,130.49,5.3123]
[1726650945540,3.8295,130.55,130.49,5.3123]
[1726650945839,3.8295,130.55,130.5,3.8308]
[1726650946048,3.8295,130.55,130.51,6.96467442]
[1726650946943,3.8291,130.56,130.51,6.96467442]
[1726650947247,3.8291,130.56,130.5,3.8308]
[1726650948241,3.8288,130.57,130.49,1.4813]
[1726650948450,2.886,130.63,130.51,3.8303]
[1726650948844,3.8289,130.57,130.51,3.8303]
[1726650949348,2.886,130.63,130.5,6.96467231]
[1726650949549,3.8296,130.54,130.5,6.96467231]
[1726650949846,2.886,130.63,130.5,6.96467231]
[1726650950051,2.886,130.63,130.42,7.656]
[1726650950052,3.8304,130.52,130.49,6.96467231]
[1726650950239,3.8304,130.52,130.44,7.656]
[1726650950445,3.8304,130.52,130.45,6.96467231]
[1726650950648,3.8304,130.52,130.44,7.656]
[1726650950649,3.8304,130.52,130.46,6.96467231]
[1726650950844,3.8304,130.52,130.47,6.96467231]
[1726650951047,3.8304,130.52,130.46,3.8318]
[1726650951243,7.6552,130.61,130.46,6.96467231]
[1726650951451,1.15909858,130.6,130.45,6.96467231]
[1726650951753,3.8304,130.52,130.46,3.832]
[1726650951948,3.8304,130.52,130.46,10.79844707]
[1726650952146,3.8304,130.52,130.46,3.832]
[1726650952349,3.8304,130.52,130.47,3.8317]
[1726650952650,3.8304,130.52,130.45,6.96644707]
[1726650952852,3.8304,130.52,130.46,10.79834707]
[1726650953052,3.8304,130.52,130.46,3.8319]
[1726650953753,3.8305,130.51,130.45,10.79854707]
[1726650955149,3.8305,130.51,130.44,19.41174707]
[1726650955748,1.5281,130.58,130.44,7.656]
[1726650956152,3.831,130.5,130.44,7.656]
[1726650956454,1.5281,130.58,130.44,7.656]
[1726650956658,3.831,130.5,130.44,11.4884]
[1726650957461,1.5281,130.58,130.44,7.656]
[1726650957756,15.32,130.57,130.44,7.656]
[1726650957956,3.8309,130.5,130.44,11.4885]
[1726650958955,3.8311,130.49,130.44,11.4885]
[1726650959161,3.8311,130.49,130.43,11.4886]
[1726650960262,15.32,130.57,130.43,7.656]
[1726650960656,22.9776,130.57,130.43,7.656]
[1726650960861,3.8315,130.48,130.43,7.656]
[1726650961158,7.6583,130.56,130.44,7.656]
[1726650961366,1.4489,130.47,130.44,7.656]
[1726650961860,1.5269,130.54,130.44,7.656]
[1726650962075,3.8307,130.51,130.44,7.656]
[1726650962457,2.9758,130.54,130.44,7.656]
[1726650962659,3.8305,130.51,130.45,1.5269]
[1726650962857,2.9758,130.54,130.46,3.8318]
[1726650963061,3.8304,130.52,130.46,3.8318]
[1726650963271,2.9758,130.54,130.48,3.8314]
[1726650963667,6.8056,130.54,130.48,3.8314]
[1726650963963,2.9758,130.54,130.47,3.8316]
[1726650964771,3.8301,130.53,130.47,3.8316]
[1726650966667,6.8055,130.54,130.47,3.8316]
[1726650966864,2.9758,130.54,130.47,3.8316]
[1726650967866,3.8301,130.53,130.47,3.8316]
[1726650969771,3.8301,130.53,130.45,1.5269]
[1726650970360,3.8301,130.53,130.47,3.8316]
[1726650970563,3.8301,130.53,130.45,8.49296984]
[1726650970761,6.8055,130.54,130.45,8.49296984]
[1726650970962,2.9758,130.54,130.45,8.49296984]
[1726650971165,1.4489,130.54,130.45,8.49296984]
[1726650971370,1.4489,130.54,130.45,1.5269]
[1726650971672,1.4489,130.54,130.45,8.49296984]
[1726650972069,1.4489,130.54,130.46,6.96606984]
[1726650972275,3.8303,130.52,130.46,3.8319]
[1726650973267,3.8303,130.52,130.46,10.79796984]
[1726650974068,3.8303,130.52,130.46,3.8319]
[1726650974262,3.8303,130.52,130.46,10.79790831]
[1726650975166,1.4489,130.54,130.43,6.96600831]
[1726650975367,1.4917,130.51,130.44,7.656]
[1726650975678,3.8312,130.49,130.44,7.656]
[1726650977765,3.8312,130.49,130.44,14.62350821]
[1726650977969,3.8312,130.49,130.44,7.656]
[1726650978279,3.8309,130.5,130.44,14.62350821]
[1726650978476,1.4917,130.51,130.44,7.656]
[1726650978778,3.8304,130.52,130.45,6.96750821]
[1726650979170,1.5072,130.53,130.45,6.96750821]
[1726650979375,1.5072,130.53,130.46,6.96750821]
[1726650979576,1.5072,130.53,130.47,6.96750821]
[1726650979771,1.5072,130.53,130.46,6.96750821]
[1726650979974,5.3371,130.53,130.47,10.79910821]
[1726650980168,1.5072,130.53,130.46,6.96750821]
[1726650980369,1.5072,130.53,130.47,6.96750821]
[1726650980570,1.5072,130.53,130.46,6.96750821]
[1726650980772,1.5072,130.53,130.45,1.4567]
[1726650981173,3.831,130.5,130.45,8.42294129]
[1726650981572,3.8311,130.49,130.44,11.4883]
[1726650981774,3.8311,130.49,130.44,18.45454129]
[1726650982078,3.8311,130.49,130.44,7.656]
[1726650982278,3.8314,130.48,130.44,14.62224129]
[1726650982684,3.8314,130.48,130.44,7.656]